bitfinex-derivatives/quotes_BTCF0:USTF0_20241213
["timestamp","ask_amount","ask_price","bid_price","bid_amount"]
[1734062457176,0.15131696,99784.0,99783.0,0.03908]
[1734062458166,0.20004581,99784.0,99783.0,0.03908]
[1734062458675,0.19904581,99784.0,99783.0,0.03008]
[1734062458875,0.050108,99770.0,99768.0,0.410908]
[1734062459068,0.14007424,99770.0,99768.0,0.410908]
[1734062459272,0.050108,99770.0,99768.0,0.3608]
[1734062459467,0.050108,99768.0,99763.0,0.17936911]
[1734062459668,0.08999274,99766.0,99762.0,0.26268011]
[1734062460066,0.08999274,99766.0,99762.0,0.27069011]
[1734062460273,0.10023153,99765.0,99762.0,0.27870011]
[1734062460773,0.10023153,99765.0,99762.0,0.099331]
[1734062461774,0.10023153,99765.0,99763.0,0.01811]
[1734062462681,0.05011,99764.0,99763.0,0.01811]
[1734062462881,0.14010274,99764.0,99763.0,0.01811]
[1734062463385,0.2403398,99764.0,99763.0,0.01811]
[1734062463585,0.2403398,99764.0,99763.0,0.02611]
[1734062463785,0.2403398,99764.0,99763.0,0.03111]
[1734062464088,0.15034706,99764.0,99763.0,0.03111]
[1734062464280,0.2403398,99764.0,99763.0,0.03111]
[1734062465089,0.2403398,99764.0,99763.0,0.02311]
[1734062465285,0.2413398,99764.0,99763.0,0.02711]
[1734062465482,0.2413398,99764.0,99763.0,0.03211]
[1734062465483,0.2423398,99764.0,99763.0,0.03211]
[1734062468184,0.15234706,99764.0,99763.0,0.03211]
[1734062471080,0.10223706,99764.0,99763.0,0.03211]
[1734062471585,0.10223706,99764.0,99763.0,0.06531]
[1734062472386,0.10223706,99764.0,99763.0,0.07525309]
[1734062473277,0.10223706,99764.0,99763.0,0.06531]
[1734062475784,0.10223706,99764.0,99763.0,0.12255143]
[1734062476183,0.10223706,99764.0,99763.0,0.36225404]
[1734062476394,0.10223706,99764.0,99763.0,0.12255143]
[1734062476692,0.10223706,99764.0,99763.0,0.36222101]
[1734062477088,0.10223706,99764.0,99763.0,0.06531]
[1734062477693,0.10223706,99764.0,99763.0,0.36222333]
[1734062478086,0.002,99764.0,99763.0,0.12258006]
[1734062478598,0.08999274,99778.0,99772.0,0.050106]
[1734062478791,0.11336384,99780.0,99776.0,0.3608]
[1734062478792,0.08999274,99777.0,99776.0,0.3608]
[1734062479185,0.08999274,99778.0,99776.0,0.3608]
[1734062479386,0.10023706,99777.0,99776.0,0.3608]
[1734062479586,0.08999274,99778.0,99776.0,0.3608]
[1734062479787,0.09099274,99778.0,99776.0,0.3608]
[1734062480097,0.19021674,99777.0,99776.0,0.36881]
[1734062480592,0.100224,99777.0,99776.0,0.55753739]
[1734062481094,0.001,99778.0,99776.0,0.37781]
[1734062481288,0.10022349,99777.0,99776.0,0.37781]
[1734062481682,0.10022349,99777.0,99776.0,0.38181]
[1734062482088,0.10022349,99777.0,99776.0,0.56153739]
[1734062482787,0.10122349,99777.0,99776.0,0.38181]
[1734062483185,0.001,99777.0,99776.0,0.38181]
[1734062483495,0.101224,99777.0,99776.0,0.38181]
[1734062486097,0.100224,99777.0,99776.0,0.37281]
[1734062486294,0.101224,99777.0,99776.0,0.56153739]
[1734062486498,0.001,99777.0,99776.0,0.02101]
[1734062486697,0.101224,99777.0,99776.0,0.02101]
[1734062487499,0.101224,99777.0,99776.0,0.20073739]
[1734062487696,0.101224,99777.0,99776.0,0.18773739]
[1734062487896,0.101224,99777.0,99776.0,0.56153739]
[1734062488388,0.19126977,99777.0,99776.0,0.56153739]
[1734062488589,0.101224,99777.0,99776.0,0.56153739]
[1734062489092,0.19126848,99777.0,99776.0,0.56153739]
[1734062489288,0.100224,99777.0,99776.0,0.37281]
[1734062489489,0.151328,99777.0,99776.0,0.38181]
[1734062489689,0.051104,99777.0,99776.0,0.38181]
[1734062489891,0.151328,99777.0,99776.0,0.38181]
[1734062491292,0.151328,99777.0,99776.0,0.02101]
[1734062491600,0.27134723,99777.0,99776.0,0.02001]
[1734062492602,0.27034723,99777.0,99776.0,0.01101]
[1734062492901,0.27134723,99777.0,99776.0,0.02001]
[1734062493093,0.27134723,99777.0,99776.0,0.012]
[1734062493094,0.151328,99777.0,99776.0,0.012]
[1734062496196,0.27142955,99777.0,99776.0,0.012]
[1734062496488,0.151328,99777.0,99776.0,0.012]
[1734062496692,0.150328,99777.0,99776.0,0.003]
[1734062496900,0.151328,99777.0,99776.0,0.012]
[1734062498295,0.151328,99777.0,99776.0,0.25163652]
[1734062499599,0.151328,99777.0,99776.0,0.012]
[1734062500206,0.151328,99777.0,99776.0,0.2518899]
[1734062500601,0.151328,99777.0,99776.0,0.012]
[1734062501494,0.27152312,99777.0,99776.0,0.012]
[1734062503207,0.151328,99777.0,99776.0,0.012]
[1734062503509,0.001,99777.0,99776.0,0.012]
[1734062503809,0.001,99777.0,99776.0,0.36885157]
[1734062504007,0.001,99777.0,99776.0,0.37231092]
[1734062507613,0.001,99777.0,99776.0,0.38223931]
[1734062508512,0.001,99777.0,99776.0,0.68189236]
[1734062508718,0.001,99777.0,99776.0,0.38223931]
[1734062509311,0.001,99777.0,99776.0,0.38132714]
[1734062509512,0.001,99777.0,99776.0,0.68094461]
[1734062510307,0.001,99777.0,99776.0,0.41005162]
[1734062510708,0.001,99777.0,99776.0,0.11043415]
[1734062510915,0.001,99777.0,99776.0,0.41005162]
[1734062511112,0.001,99777.0,99776.0,0.6811732]
[1734062511414,0.001,99777.0,99776.0,0.41005162]
[1734062512205,0.001,99777.0,99776.0,0.11043415]
[1734062513510,0.001,99777.0,99776.0,0.68159568]
[1734062513810,0.001,99777.0,99776.0,0.68159647]
[1734062514013,0.001,99777.0,99776.0,0.41005162]
[1734062515013,0.001,99777.0,99776.0,0.68149693]
[1734062515315,0.001,99777.0,99776.0,0.41005162]
[1734062516219,0.001,99777.0,99776.0,0.11043415]
[1734062521111,0.001,99777.0,99776.0,0.16053815]
[1734062521905,0.001,99777.0,99776.0,0.46015562]
[1734062522317,0.001,99777.0,99776.0,0.73211531]
[1734062522517,0.001,99777.0,99776.0,0.43249784]
[1734062522711,0.001,99777.0,99776.0,0.43251806]
[1734062523922,0.001,99777.0,99776.0,0.73210365]
[1734062524219,0.001,99777.0,99776.0,0.43251806]
[1734062524613,0.001,99777.0,99776.0,0.73213147]
[1734062524818,0.001,99777.0,99776.0,0.46015156]
[1734062525021,0.001,99777.0,99776.0,0.16053815]
[1734062526414,0.001,99777.0,99776.0,0.46015156]
[1734062526816,0.001,99777.0,99776.0,0.16053815]
[1734062527217,0.001,99777.0,99776.0,0.46015156]
[1734062528419,0.001,99777.0,99776.0,0.73342357]
[1734062528726,0.001,99777.0,99776.0,0.43381016]
[1734062530530,0.001,99777.0,99776.0,0.43434056]
[1734062531327,0.001,99777.0,99776.0,0.75401217]
[1734062531534,0.001,99777.0,99776.0,0.422904]
[1734062531535,0.101224,99777.0,99776.0,0.422904]
[1734062531730,0.101224,99777.0,99776.0,0.3728]
[1734062532030,0.132424,99777.0,99776.0,0.3728]
[1734062532233,0.132424,99777.0,99776.0,0.25198461]
[1734062532426,0.132424,99777.0,99776.0,0.012]
[1734062532822,0.25263298,99777.0,99776.0,0.012]
[1734062533323,0.132424,99777.0,99776.0,0.012]
[1734062534029,0.14240343,99777.0,99776.0,0.012]
[1734062534531,0.14240343,99777.0,99776.0,0.19196311]
[1734062534723,0.14240343,99777.0,99776.0,0.012]
[1734062535732,0.14240343,99777.0,99776.0,0.19193325]
[1734062535926,0.14240343,99777.0,99776.0,0.012]
[1734062536126,0.14240343,99777.0,99773.0,0.00701]
[1734062536330,0.050105,99774.0,99773.0,0.00701]
[1734062536725,0.04217943,99777.0,99769.0,0.17993325]
[1734062536929,0.050107,99770.0,99769.0,0.17993325]
[1734062537524,0.15033803,99770.0,99768.0,0.17993325]
[1734062538225,0.15033803,99770.0,99769.0,0.005]
[1734062539431,0.15133803,99770.0,99769.0,0.005]
[1734062539923,0.10023103,99770.0,99766.0,0.02303]
[1734062540121,0.1401244,99767.0,99766.0,0.02303]
[1734062540537,0.15034304,99767.0,99766.0,0.02303]
[1734062541041,0.27044054,99767.0,99766.0,0.02303]
[1734062541227,0.050114,99757.0,99756.0,0.17993325]
[1734062541639,0.050114,99757.0,99755.0,0.17993325]
[1734062541826,0.050115,99755.0,99753.0,0.17993325]
[1734062542033,0.050117,99750.0,99749.0,0.17993325]
[1734062542427,0.050117,99750.0,99744.0,0.29011961]
[1734062542428,0.15035104,99750.0,99747.0,0.17993325]
[1734062542629,0.15035104,99750.0,99746.0,0.00985]
[1734062543732,0.050119,99747.0,99746.0,0.00985]
[1734062544336,0.15037063,99747.0,99746.0,0.00985]
[1734062545134,0.15137063,99747.0,99746.0,0.01585]
[1734062548143,0.15137063,99747.0,99746.0,0.01385]
[1734062548745,0.15037063,99747.0,99746.0,0.00985]
[1734062549037,0.15037063,99747.0,99746.0,0.01385]
[1734062549234,0.15137063,99747.0,99746.0,0.01485]
[1734062558633,0.15137063,99747.0,99746.0,0.00683]
[1734062559238,0.15137063,99747.0,99736.0,0.00204]
[1734062559239,0.050124,99737.0,99736.0,0.00204]
[1734062559644,0.050124,99737.0,99735.0,0.00802]
[1734062559847,0.050124,99736.0,99735.0,0.00802]
[1734062560445,0.15037814,99736.0,99735.0,0.00802]
[1734062561346,0.15137814,99736.0,99735.0,0.01202]
[1734062561852,0.15237814,99736.0,99735.0,0.01202]
[1734062565045,0.16258183,99736.0,99735.0,0.01202]
[1734062573746,0.29243673,99736.0,99735.0,0.01202]
[1734062573946,0.22244376,99736.0,99735.0,0.01202]
[1734062574842,0.27256776,99736.0,99735.0,0.062145]
[1734062575251,0.15237814,99736.0,99735.0,0.062145]
[1734062576352,0.15237814,99736.0,99735.0,0.01202]
[1734062576951,0.20112766,99736.0,99735.0,0.01202]
[1734062578548,0.56192766,99736.0,99735.0,0.01202]
[1734062578754,0.56192777,99736.0,99735.0,0.01202]
[1734062580259,0.51317814,99736.0,99735.0,0.01202]
[1734062580445,0.66343491,99736.0,99735.0,0.01202]
[1734062580648,0.3026383,99736.0,99735.0,0.01202]
[1734062581051,0.15237814,99736.0,99735.0,0.01202]
[1734062584762,0.15237814,99736.0,99735.0,0.004]
[1734062585651,0.15237814,99736.0,99735.0,0.054125]
[1734062597254,0.27263034,99736.0,99735.0,0.054125]
[1734062598169,0.15237814,99736.0,99735.0,0.29456242]
[1734062598363,0.15237814,99736.0,99735.0,0.054125]
[1734062598563,0.15237814,99736.0,99735.0,0.004]
[1734062599362,0.15237814,99736.0,99735.0,0.18435915]
[1734062601668,0.15237814,99736.0,99735.0,0.004]
[1734062602065,0.15237814,99736.0,99735.0,0.18436971]
[1734062602267,0.15237814,99736.0,99735.0,0.086325]
[1734062602476,0.27262401,99736.0,99735.0,0.32676242]
[1734062602968,0.15237814,99736.0,99735.0,0.086325]
[1734062603178,0.15237814,99736.0,99735.0,0.14376351]
[1734062604472,0.15237814,99736.0,99735.0,0.086325]
[1734062609875,0.27262401,99736.0,99735.0,0.086325]
[1734062610265,0.15237814,99736.0,99735.0,0.086325]
[1734062618577,0.27262401,99736.0,99735.0,0.086325]
[1734062619272,0.15237814,99736.0,99735.0,0.447125]
[1734062622287,0.15237814,99736.0,99735.0,0.50455891]
[1734062622580,0.15237814,99736.0,99735.0,0.447125]
[1734062623081,0.15237814,99736.0,99735.0,0.50455874]
[1734062624081,0.15237814,99736.0,99735.0,0.447125]
[1734062627494,0.15237814,99736.0,99735.0,0.50455609]
[1734062628184,0.27262401,99736.0,99735.0,0.447125]
[1734062628583,0.15237814,99736.0,99735.0,0.447125]
[1734062629681,0.27262401,99736.0,99735.0,0.447125]
[1734062630878,0.15237814,99736.0,99735.0,0.447125]
[1734062633887,0.15237814,99736.0,99735.0,0.50455725]
[1734062634284,0.15237814,99736.0,99735.0,0.447125]
[1734062634883,0.15237814,99736.0,99735.0,0.50456295]
[1734062636386,0.15237814,99736.0,99735.0,0.80451292]
[1734062636591,0.15237814,99736.0,99735.0,0.50456295]
[1734062637590,0.27269995,99736.0,99735.0,0.50456295]
[1734062638184,0.27269995,99736.0,99735.0,1.08576958]
[1734062638386,0.15237814,99736.0,99735.0,1.08576958]
[1734062638581,0.15237814,99736.0,99735.0,1.08584103]
[1734062639095,0.27269995,99736.0,99735.0,0.80451292]
[1734062639687,0.27269995,99736.0,99735.0,0.50456295]
[1734062640395,0.27269995,99736.0,99735.0,0.80451292]
[1734062640594,0.27269995,99736.0,99735.0,0.50456295]
[1734062644392,0.27269995,99736.0,99735.0,0.80451292]
[1734062644393,0.15237814,99736.0,99735.0,0.80451292]
[1734062645697,0.15237814,99736.0,99735.0,0.50456295]
[1734062646097,0.27269995,99736.0,99735.0,0.50456295]
[1734062646597,0.15237814,99736.0,99735.0,0.50456295]
[1734062646794,0.27269995,99736.0,99735.0,0.50456295]
[1734062647197,0.15237814,99736.0,99735.0,0.80451292]
[1734062648202,0.15237814,99736.0,99735.0,0.50456295]
[1734062648700,0.27269995,99736.0,99735.0,0.50456295]
[1734062652309,0.27269995,99736.0,99735.0,0.14376295]
[1734062652511,0.27269995,99736.0,99735.0,0.50456295]
[1734062654114,0.15237814,99736.0,99735.0,0.80451292]
[1734062654613,0.15237814,99736.0,99735.0,1.0872148]
[1734062655013,0.15237814,99736.0,99735.0,0.80451292]
[1734062656209,0.15237814,99736.0,99735.0,1.08726485]
[1734062656418,0.15237814,99736.0,99735.0,1.08719532]
[1734062656620,0.15237814,99736.0,99735.0,0.80451292]
[1734062657011,0.15237814,99736.0,99735.0,1.08729192]
[1734062657511,0.15237814,99736.0,99735.0,0.80451292]
[1734062657711,0.15237814,99736.0,99735.0,1.08714815]
[1734062658013,0.15237814,99736.0,99735.0,1.08794361]
[1734062658219,0.15237814,99736.0,99735.0,0.78719818]
[1734062662922,0.15237814,99736.0,99735.0,1.08748352]
[1734062663114,0.27269995,99736.0,99735.0,0.447125]
[1734062663313,0.15237814,99736.0,99735.0,0.50459243]
[1734062663516,0.15237814,99736.0,99735.0,0.447125]
[1734062663818,0.15237814,99736.0,99735.0,0.50459246]
[1734062665725,0.27269995,99736.0,99735.0,0.50459246]
[1734062667420,0.15237814,99736.0,99735.0,0.50459246]
[1734062668227,0.15237814,99736.0,99735.0,0.14379246]
[1734062668424,0.15237814,99736.0,99735.0,0.78632679]
[1734062671522,0.15026016,99748.0,99735.0,0.73627615]
[1734062671718,0.15026016,99752.0,99751.0,0.050117]
[1734062672031,0.050116,99752.0,99751.0,0.050117]
[1734062672326,0.30063532,99752.0,99751.0,0.050117]
[1734062672534,0.15037516,99752.0,99751.0,0.050117]
[1734062673127,0.15137516,99752.0,99751.0,0.050117]
[1734062674721,0.15137516,99752.0,99751.0,0.051117]
[1734062679022,0.15137516,99752.0,99751.0,0.001]
[1734062681332,0.24146293,99752.0,99751.0,0.001]
[1734062681835,0.15137516,99752.0,99751.0,0.001]
[1734062682129,0.24146364,99752.0,99751.0,0.001]
[1734062682335,0.15137516,99752.0,99751.0,0.001]
[1734062683433,0.15137516,99752.0,99751.0,0.18116195]
[1734062683842,0.15137516,99752.0,99751.0,0.54196195]
[1734062684331,0.15137516,99752.0,99751.0,0.3618]
[1734062685136,0.24146415,99752.0,99751.0,0.3618]
[1734062686232,0.15137516,99752.0,99751.0,0.3618]
[1734062687839,0.24146439,99752.0,99751.0,0.3618]
[1734062689332,0.15137516,99752.0,99751.0,0.3618]
[1734062692823,0.17114541,99752.0,99751.0,0.3618]
[1734062695338,0.17114541,99752.0,99751.0,0.411917]
[1734062696136,0.10125916,99752.0,99751.0,0.411917]
[1734062696340,0.191378,99752.0,99751.0,0.65222803]
[1734062696539,0.10125916,99752.0,99751.0,0.411917]
[1734062698635,0.10125916,99752.0,99751.0,0.3618]
[1734062698636,0.241494,99752.0,99751.0,0.3618]
[1734062698839,0.15137516,99752.0,99751.0,0.3618]
[1734062703333,0.15137516,99752.0,99751.0,0.001]
[1734062704040,0.20011506,99752.0,99751.0,0.001]
[1734062706431,0.2001179,99752.0,99751.0,0.001]
[1734062710847,0.20011815,99752.0,99751.0,0.001]
[1734062715139,0.15137516,99752.0,99751.0,0.001]
[1734062715340,0.20011807,99752.0,99751.0,0.001]
[1734062715540,0.20011809,99752.0,99751.0,0.001]
[1734062716637,0.30147197,99752.0,99751.0,0.001]
[1734062717346,0.15137516,99752.0,99751.0,0.001]
[1734062719457,0.10125916,99752.0,99741.0,0.18035391]
[1734062719744,0.48732368,99751.0,99741.0,0.18035391]
[1734062719952,0.050122,99741.0,99740.0,0.54115391]
[1734062720547,0.15037614,99741.0,99740.0,0.54115391]
[1734062721255,0.15137614,99741.0,99740.0,0.54215391]
[1734062722357,0.15237614,99741.0,99740.0,0.54315391]
[1734062722946,0.15237614,99741.0,99740.0,0.3628]
[1734062723547,0.15237614,99741.0,99740.0,0.002]
[1734062723548,0.52315848,99741.0,99740.0,0.002]
[1734062723741,0.52315848,99741.0,99737.0,0.00802]
[1734062723742,0.050123,99738.0,99737.0,0.00802]
[1734062724457,0.15038317,99738.0,99737.0,0.00802]
[1734062724960,0.15138317,99738.0,99737.0,0.00902]
[1734062725455,0.30147998,99738.0,99737.0,0.00902]
[1734062726243,0.30247998,99738.0,99737.0,0.00902]
[1734062726455,0.15238317,99738.0,99737.0,0.00902]
[1734062727756,0.30247998,99738.0,99737.0,0.00902]
[1734062728755,0.30247998,99738.0,99728.0,0.00012]
[1734062728756,0.050128,99729.0,99728.0,0.00012]
[1734062729153,0.3608,99730.0,99722.0,0.18005216]
[1734062729453,0.3608,99730.0,99719.0,0.03]
[1734062729454,0.050132,99721.0,99719.0,0.02988]
[1734062729758,0.3608,99720.0,99719.0,0.02988]
[1734062730252,0.3608,99720.0,99716.0,0.00082]
[1734062730253,0.050134,99717.0,99716.0,0.00082]
[1734062730951,0.15041478,99717.0,99716.0,0.00082]
[1734062731469,0.15141478,99717.0,99716.0,0.00082]
[1734062732360,0.15141478,99717.0,99708.0,0.03204]
[1734062732657,0.5009328,99709.0,99708.0,0.03204]
[1734062733053,0.5009328,99709.0,99708.0,0.0319]
[1734062733255,0.15043035,99709.0,99708.0,0.0319]
[1734062735049,0.15143035,99709.0,99708.0,0.0319]
[1734062735964,0.15243035,99709.0,99708.0,0.0319]
[1734062738655,0.16242294,99709.0,99708.0,0.0319]
[1734062745263,0.16242294,99709.0,99706.0,0.0306]
[1734062745264,0.11228494,99709.0,99706.0,0.0306]
[1734062745566,0.050139,99707.0,99706.0,0.0306]
[1734062746364,0.15043336,99707.0,99706.0,0.0306]
[1734062746763,0.15143336,99707.0,99706.0,0.0306]
[1734062748071,0.15243336,99707.0,99706.0,0.0306]
[1734062748463,0.05014,99705.0,99704.0,0.3608]
[1734062749064,0.15043436,99705.0,99704.0,0.3608]
[1734062749566,0.15143436,99705.0,99704.0,0.3608]
[1734062749871,0.15243436,99705.0,99704.0,0.3608]
[1734062753671,0.050141,99702.0,99701.0,0.0306]
[1734062754265,0.050141,99702.0,99700.0,0.1]
[1734062754266,0.15044039,99702.0,99700.0,0.1]
[1734062754472,0.09006679,99701.0,99700.0,0.1]
[1734062754777,0.051141,99702.0,99700.0,0.1]
[1734062755274,0.051141,99702.0,99686.0,0.0311]
[1734062755275,0.050148,99688.0,99686.0,0.3919]
[1734062755576,0.050148,99688.0,99686.0,0.0311]
[1734062755778,0.050148,99688.0,99687.0,0.27164793]
[1734062756075,0.15044789,99688.0,99687.0,0.0316]
[1734062756475,0.15144789,99688.0,99687.0,0.0316]
[1734062756778,0.15144789,99688.0,99687.0,0.27164793]
[1734062757476,0.15244789,99688.0,99687.0,0.0316]
[1734062757675,0.10229989,99688.0,99687.0,0.0316]
[1734062758070,0.09011211,99697.0,99687.0,0.0316]
[1734062758265,0.00150507,99708.0,99687.0,0.0316]
[1734062758266,0.17666668,99700.0,99696.0,0.24003637]
[1734062758573,0.09014302,99699.0,99694.0,0.410945]
[1734062758880,0.10031347,99699.0,99694.0,0.410945]
[1734062759184,0.19045649,99699.0,99694.0,0.410945]
[1734062759369,0.09014302,99698.0,99694.0,0.410945]
[1734062759569,0.19045649,99699.0,99694.0,0.410945]
[1734062759781,0.09014302,99699.0,99694.0,0.410945]
[1734062759978,0.10030442,99698.0,99694.0,0.410945]
[1734062760284,0.001,99697.0,99694.0,0.410945]
[1734062760667,0.051144,99697.0,99694.0,0.410945]
[1734062760974,0.10030442,99696.0,99694.0,0.410945]
[1734062761578,0.10030442,99696.0,99694.0,0.71099801]
[1734062761967,0.10030442,99696.0,99694.0,0.71199801]
[1734062762377,0.10030442,99696.0,99695.0,0.04389197]
[1734062763173,0.10030442,99696.0,99695.0,0.34394498]
[1734062763480,0.10030442,99696.0,99695.0,0.04389197]
[1734062763677,0.10030442,99696.0,99695.0,0.34394498]
[1734062763881,0.10030442,99696.0,99695.0,0.64421069]
[1734062764284,0.10130442,99696.0,99695.0,0.34415768]
[1734062764468,0.10130442,99696.0,99695.0,0.40250117]
[1734062764469,0.10230442,99696.0,99695.0,0.40250117]
[1734062767377,0.10230442,99696.0,99695.0,0.40149538]
[1734062767885,0.05164407,99708.0,99695.0,0.40149538]
[1734062768077,0.05164407,99708.0,99707.0,0.410939]
[1734062768483,0.1519495,99708.0,99707.0,0.410939]
[1734062768683,0.1519495,99708.0,99707.0,0.46826756]
[1734062769085,0.1519495,99708.0,99707.0,0.76839408]
[1734062769276,0.1519495,99708.0,99707.0,0.46826756]
[1734062769676,0.1529495,99708.0,99707.0,0.46826756]
[1734062770171,0.1519495,99708.0,99707.0,0.46826756]
[1734062770375,0.1519495,99708.0,99707.0,0.47026756]
[1734062770376,0.1529495,99708.0,99707.0,0.47026756]
[1734062770586,0.1539495,99708.0,99707.0,0.47026756]
[1734062770880,0.1038105,99708.0,99707.0,0.47026756]
[1734062771080,0.00350507,99708.0,99707.0,0.76762925]
[1734062771281,0.00350507,99708.0,99707.0,0.76862925]
[1734062771672,0.00350507,99708.0,99707.0,0.81251433]
[1734062772086,0.00350507,99708.0,99707.0,1.17267243]
[1734062772289,0.00350507,99708.0,99707.0,0.81251433]
[1734062772780,0.00350507,99708.0,99707.0,0.76862925]
[1734062775178,0.00350507,99708.0,99707.0,1.06819658]
[1734062775885,0.00350507,99708.0,99707.0,0.76862925]
[1734062776183,0.00350507,99708.0,99707.0,1.06815384]
[1734062776987,0.00350507,99708.0,99707.0,0.77079215]
[1734062778282,0.00350507,99708.0,99707.0,0.47126756]
[1734062779285,0.00350507,99708.0,99707.0,0.413939]
[1734062779493,0.00350507,99708.0,99707.0,0.4711587]
[1734062780278,0.00350507,99708.0,99707.0,0.413939]
[1734062782192,0.00350507,99708.0,99707.0,0.47115205]
[1734062782393,0.00350507,99708.0,99707.0,0.413939]
[1734062789798,0.00350507,99708.0,99707.0,0.70990673]
[1734062791403,0.00350507,99708.0,99707.0,0.76713764]
[1734062791590,0.00350507,99708.0,99707.0,0.81102035]
[1734062792603,0.10379842,99708.0,99707.0,0.51505262]
[1734062792908,0.10379842,99708.0,99707.0,0.76785411]
[1734062793091,0.10379842,99708.0,99707.0,0.71380464]
[1734062793294,0.10379842,99708.0,99707.0,1.01104955]
[1734062793793,0.10379842,99708.0,99707.0,0.71118391]
[1734062794788,0.10379842,99708.0,99707.0,0.81234319]
[1734062795496,0.10379842,99708.0,99707.0,0.7550687]
[1734062795900,0.10379842,99708.0,99707.0,0.71118391]
[1734062796492,0.10379842,99708.0,99707.0,0.66104491]
[1734062797396,0.10379842,99708.0,99707.0,0.66140077]
[1734062798299,0.10379842,99708.0,99707.0,0.66121674]
[1734062799196,0.10379842,99708.0,99707.0,0.71853365]
[1734062801896,0.10379842,99708.0,99707.0,0.76127712]
[1734062803199,0.10379842,99708.0,99707.0,0.71739129]
[1734062804313,0.10379842,99708.0,99707.0,0.72124618]
[1734062804499,0.10379842,99708.0,99707.0,1.01740037]
[1734062806514,0.10379842,99708.0,99707.0,0.72124618]
[1734062806703,0.10379842,99708.0,99707.0,1.01695478]
[1734062810803,0.10379842,99708.0,99707.0,1.01659349]
[1734062812315,0.10379842,99708.0,99707.0,1.01656565]
[1734062812510,0.10379842,99708.0,99707.0,0.71646422]
[1734062812710,0.10379842,99708.0,99707.0,1.01656395]
[1734062813404,0.10379842,99708.0,99707.0,0.76035026]
[1734062813819,0.10379842,99708.0,99707.0,1.06042677]
[1734062814024,0.10379842,99708.0,99707.0,0.76035026]
[1734062815012,0.10379842,99708.0,99707.0,0.46500295]
[1734062815215,0.10379842,99708.0,99707.0,0.76000109]
[1734062815415,0.10379842,99708.0,99707.0,0.7600066]
[1734062820411,0.09222707,99708.0,99707.0,0.70316227]
[1734062820715,0.12014948,99720.0,99707.0,0.79358422]
[1734062820908,0.0643,99737.0,99707.0,0.79358422]
[1734062820909,0.12014948,99723.0,99719.0,0.3608]
[1734062821114,0.10029335,99728.0,99726.0,0.050129]
[1734062821425,0.12014948,99735.0,99734.0,0.050125]
[1734062821625,0.12014948,99738.0,99737.0,0.050124]
[1734062821823,0.15169156,99741.0,99740.0,0.050122]
[1734062822122,0.00150471,99741.0,99740.0,0.050122]
[1734062822323,0.12016803,99747.0,99738.0,0.23987957]
[1734062822522,0.12016803,99753.0,99746.0,0.3608]
[1734062822828,0.10026017,99757.0,99756.0,0.050114]
[1734062823121,0.00989304,99760.0,99759.0,0.050113]
[1734062823327,0.00989304,99760.0,99756.0,0.60041746]
[1734062823328,0.001504,99764.0,99761.0,0.050112]
[1734062823824,0.10024409,99763.0,99762.0,0.050111]
[1734062825327,0.019504,99764.0,99762.0,0.050111]
[1734062825524,0.010504,99764.0,99762.0,0.050111]
[1734062825715,0.009,99763.0,99762.0,0.051111]
[1734062826322,0.018,99763.0,99762.0,0.052111]
[1734062827118,0.009,99763.0,99762.0,0.052111]
[1734062827926,0.018,99763.0,99762.0,0.052111]
[1734062842326,0.018,99763.0,99762.0,0.773711]
[1734062846233,0.018,99763.0,99762.0,0.95255933]
[1734062846435,0.018,99763.0,99762.0,0.3628]
[1734062846636,0.11823806,99763.0,99750.0,0.17894213]
[1734062846845,0.11823806,99763.0,99747.0,0.3608]
[1734062846846,0.050118,99748.0,99747.0,0.3608]
[1734062847230,0.050118,99748.0,99741.0,0.3608]
[1734062847231,0.12652368,99760.0,99743.0,0.3608]
[1734062847432,0.05012,99744.0,99743.0,0.3608]
[1734062848138,0.15037313,99744.0,99743.0,0.3608]
[1734062849228,0.15037313,99744.0,99743.0,0.54027758]
[1734062849532,0.15037313,99744.0,99743.0,0.54327758]
[1734062850135,0.15037313,99744.0,99743.0,0.3638]
[1734062850842,0.15137313,99744.0,99743.0,0.3728]
[1734062851337,0.16138049,99744.0,99743.0,0.3728]
[1734062851731,0.16138049,99744.0,99743.0,0.3718]
[1734062852335,0.16138049,99744.0,99743.0,0.011]
[1734062852531,0.16138049,99744.0,99740.0,0.00046]
[1734062852532,0.050122,99741.0,99740.0,0.00046]
[1734062853338,0.15037915,99741.0,99740.0,0.00046]
[1734062854241,0.15137915,99741.0,99740.0,0.00946]
[1734062854835,0.15137915,99741.0,99740.0,0.01146]
[1734062855429,0.15137915,99741.0,99740.0,0.00946]
[1734062855628,0.15137915,99741.0,99740.0,0.01146]
[1734062868252,0.15137915,99741.0,99740.0,0.37226]
[1734062868452,0.10125715,99741.0,99740.0,0.37226]
[1734062869155,0.10125715,99741.0,99740.0,0.43576]
[1734062872252,0.10125715,99741.0,99740.0,0.61523758]
[1734062873460,0.10125715,99741.0,99740.0,0.43576]
[1734062874647,0.10025715,99741.0,99740.0,0.42476]
[1734062874848,0.10025715,99741.0,99740.0,0.42676]
[1734062875048,0.10125715,99741.0,99740.0,0.42876]
[1734062875449,0.10125715,99741.0,99740.0,0.42676]
[1734062875651,0.10125715,99741.0,99740.0,0.42876]
[1734062876350,0.10125715,99741.0,99740.0,0.72861102]
[1734062877464,0.10125715,99741.0,99740.0,1.03011509]
[1734062878149,0.17028203,99756.0,99755.0,0.050115]
[1734062878365,0.050114,99756.0,99755.0,0.050115]
[1734062878765,0.15035909,99756.0,99755.0,0.050115]
[1734062880255,0.15935909,99756.0,99755.0,0.051115]
[1734062880457,0.15935909,99756.0,99755.0,0.053115]
[1734062881067,0.15935909,99756.0,99755.0,0.051115]
[1734062881364,0.15935909,99756.0,99755.0,0.054115]
[1734062881852,0.16035909,99756.0,99755.0,0.055115]
[1734062882366,0.15135909,99756.0,99755.0,0.055115]
[1734062883156,0.15135909,99756.0,99755.0,0.23481131]
[1734062883361,0.15135909,99756.0,99755.0,0.055115]
[1734062883661,0.15135909,99756.0,99755.0,0.23481131]
[1734062885658,0.15135909,99756.0,99755.0,0.055115]
[1734062885859,0.15135909,99756.0,99755.0,0.23481131]
[1734062886168,0.15135909,99756.0,99755.0,0.055115]
[1734062886762,0.15135909,99756.0,99755.0,0.23481131]
[1734062887973,0.15135909,99756.0,99755.0,0.055115]